bitfinex-derivatives/quotes_ETHF0:USTF0_20250224
["timestamp","ask_amount","ask_price","bid_price","bid_amount"]
[1740424131730,0.382846,2652.8,2652.3,0.005646]
[1740424131924,3.4092,2652.7,2652.3,0.005646]
[1740424132129,0.9119,2652.6,2652.3,0.005646]
[1740424132724,0.3772,2652.5,2652.3,0.005646]
[1740424133230,0.5618,2652.4,2652.3,0.005646]
[1740424134325,1.31574,2652.4,2652.3,0.005646]
[1740424135323,1.31574,2652.4,2652.3,6e-06]
[1740424136328,0.5618,2652.4,2652.3,6e-06]
[1740424139437,4.3089,2652.6,2652.3,6e-06]
[1740424139635,3.7425,2652.6,2652.3,6e-06]
[1740424140032,3.2078,2652.6,2652.3,6e-06]
[1740424140234,0.005646,2652.8,2652.3,6e-06]
[1740424143139,0.382846,2652.8,2652.3,6e-06]
[1740424143742,0.005646,2652.8,2652.3,6e-06]
[1740424143941,0.005646,2652.8,2652.4,3.033]
[1740424144138,0.005646,2652.8,2652.5,0.5387]
[1740424144139,1.890226,2652.8,2652.5,0.5387]
[1740424144443,0.75388,2652.6,2652.5,0.5387]
[1740424144740,0.75388,2652.6,2652.5,1.29261]
[1740424144934,0.75387,2652.7,2652.6,0.75386]
[1740424145134,0.005646,2652.8,2652.5,0.5387]
[1740424145135,0.005646,2652.8,2652.7,0.75385]
[1740424145737,0.005646,2652.8,2652.5,2.42347]
[1740424145738,0.75388,2652.6,2652.5,0.5387]
[1740424145934,6e-06,2652.8,2652.7,0.75385]
[1740424146133,3.2078,2653.8,2652.6,1.88469]
[1740424146333,3.2078,2653.8,2653.2,1.88429]
[1740424146544,0.75358,2653.7,2653.3,1.16]
[1740424146837,0.75364,2653.5,2653.3,1.16]
[1740424147043,3.7658,2654.2,2653.3,1.16]
[1740424147339,0.005646,2653.7,2653.6,0.7536]
[1740424147534,0.005646,2653.7,2653.5,0.75361]
[1740424147741,0.759226,2653.7,2653.6,0.7536]
[1740424147936,0.75363,2653.5,2653.4,0.759276]
[1740424148248,0.005646,2653.7,2653.6,0.7536]
[1740424148839,0.005646,2653.7,2653.6,3.7866]
[1740424150844,0.75346,2654.1,2654.0,0.75348]
[1740424151236,1.88339,2654.5,2653.7,3.2078]
[1740424151541,1.88339,2654.5,2654.0,0.75347]
[1740424151542,0.75346,2654.1,2654.0,0.75347]
[1740424151741,0.75353,2653.9,2653.8,0.75353]
[1740424151943,0.75355,2653.8,2653.7,0.75355]
[1740424152139,1.88365,2654.1,2653.4,3.213446]
[1740424152442,0.75362,2653.6,2653.5,0.75361]
[1740424152638,0.75356,2653.8,2653.7,0.75356]
[1740424152840,5.643216,2654.3,2653.4,8.129566]
[1740424152841,5.097016,2654.3,2653.4,8.129566]
[1740424153347,0.75351,2654.0,2653.9,0.75351]
[1740424154242,5.097016,2654.3,2653.8,0.75353]
[1740424154243,0.75354,2653.9,2653.8,0.75353]
[1740424154439,5.097016,2654.3,2653.4,6.245446]
[1740424154632,1.88367,2654.1,2653.4,6.245446]
[1740424154834,0.7536,2653.7,2653.6,0.75358]
[1740424155139,1.88379,2653.9,2653.4,0.005646]
[1740424155341,0.75362,2653.6,2653.5,0.75361]
[1740424155542,0.75363,2653.5,2653.4,0.005646]
[1740424156235,0.75363,2653.5,2653.4,6e-06]
[1740424156637,6.75363,2653.5,2653.4,6e-06]
[1740424157640,6.81458722,2653.5,2653.4,6e-06]
[1740424158344,0.75388,2652.6,2652.5,0.5496]
[1740424158741,0.75388,2652.6,2652.5,1.30351]
[1740424158937,3.2078,2653.0,2652.5,0.5496]
[1740424159142,0.75388,2652.7,2652.6,0.75386]
[1740424159447,0.75388,2652.6,2652.5,1.30349]
[1740424159948,0.75387,2652.7,2652.6,0.75387]
[1740424160742,0.005646,2652.9,2652.5,0.5496]
[1740424160945,0.75386,2652.8,2652.7,0.75384]
[1740424161739,0.005646,2652.9,2652.8,0.75382]
[1740424162556,0.005646,2652.9,2652.8,41.55382]
[1740424162752,6e-06,2652.9,2652.8,41.55382]
[1740424163051,3.032,2653.9,2652.8,46.8]
[1740424163243,1.1307,2654.0,2652.8,46.8]
[1740424163244,0.75356,2653.8,2653.2,1.88429]
[1740424163443,0.75356,2653.8,2653.7,0.75355]
[1740424163852,0.3772,2654.0,2653.3,2.45491]
[1740424163853,0.75363,2653.6,2653.5,0.75361]
[1740424164249,0.75364,2653.5,2653.4,0.75364]
[1740424164450,0.75364,2653.5,2653.3,0.5707]
[1740424164451,0.75361,2653.6,2653.5,0.7536]
[1740424165443,0.75361,2653.6,2653.3,0.5707]
[1740424165444,0.75364,2653.5,2653.4,0.75362]
[1740424165949,0.75365,2653.4,2653.3,1.32436]
[1740424166155,0.75362,2653.6,2653.5,0.75361]
[1740424166747,0.75365,2653.5,2653.4,0.75363]
[1740424167651,1.1255,2653.7,2652.9,0.7538]
[1740424167652,0.75378,2653.0,2652.9,0.7538]
[1740424168354,5.46908,2653.5,2652.8,0.5603]
[1740424168552,0.75375,2653.1,2653.0,0.75374]
[1740424169052,0.75375,2653.1,2652.8,0.5603]
[1740424169053,5.46908,2653.5,2652.8,0.5603]
[1740424169250,0.75375,2653.1,2653.0,0.75375]
[1740424169453,0.75379,2653.0,2652.9,0.75379]
[1740424170164,0.5653,2653.2,2652.8,0.5603]
[1740424170658,3.7731,2653.2,2652.8,0.5603]
[1740424171354,3.7731,2653.2,2652.7,3.5711]
[1740424171554,0.5412,2653.1,2652.7,3.5711]
[1740424173145,0.5412,2653.1,2652.7,0.5391]
[1740424173551,3.032,2653.0,2652.4,0.551246]
[1740424173751,3.2078,2652.9,2652.4,0.005646]
[1740424173959,3.585,2652.9,2652.4,0.005646]
[1740424177857,0.3772,2652.5,2652.4,0.005646]
[1740424178371,1.4649,2652.5,2652.4,0.005646]
[1740424178966,1.0877,2652.5,2652.4,0.005646]
[1740424181061,1.0877,2652.5,2652.4,6e-06]
[1740424181062,2.0115,2652.5,2652.4,6e-06]
[1740424181962,8.0115,2652.5,2652.4,6e-06]
[1740424184871,2.0115,2652.5,2652.4,6e-06]
[1740424185866,2.00780653,2652.5,2652.4,6e-06]
[1740424186374,8.00780653,2652.5,2652.4,6e-06]
[1740424189072,3.2078,2652.6,2652.4,6e-06]
[1740424189475,0.3772,2652.9,2652.4,6e-06]
[1740424190069,3.033,2653.1,2652.4,6e-06]
[1740424190269,0.75376,2653.1,2653.0,0.75374]
[1740424190581,0.75379,2653.0,2652.9,0.75378]
[1740424190870,3.2078,2653.2,2652.5,3.5998]
[1740424191075,0.75388,2652.6,2652.5,3.5998]
[1740424191267,0.75388,2652.6,2652.5,0.5668]
[1740424191570,0.75391,2652.5,2652.4,6e-06]
[1740424191873,0.75391,2652.5,2652.4,0.753946]
[1740424192975,0.5816,2653.1,2653.0,0.75377]
[1740424193164,0.5816,2653.1,2652.5,3.2078]
[1740424193568,0.75381,2652.9,2652.8,0.7538]
[1740424194574,0.5816,2653.1,2652.5,3.2078]
[1740424194775,0.75382,2652.9,2652.8,0.7538]
[1740424194975,0.75378,2653.0,2652.9,0.75377]
[1740424196570,0.75377,2653.1,2653.0,0.75375]
[1740424197771,3.2078,2653.2,2652.8,0.5397]
[1740424197970,0.75377,2653.1,2653.0,0.75375]
[1740424198169,3.2078,2653.2,2652.8,0.5397]
[1740424198569,3.213446,2653.8,2652.8,3.7475]
[1740424198971,0.005646,2653.8,2652.8,3.7475]
[1740424199274,0.005646,2653.8,2653.1,3.2078]
[1740424199571,0.005646,2653.8,2653.2,0.5596]
[1740424199873,0.005646,2653.8,2653.3,0.5548]
[1740424200078,0.005646,2653.8,2653.2,0.5596]
[1740424200269,3.033,2653.7,2653.2,0.5596]
[1740424200775,3.6173,2653.7,2653.2,0.5596]
[1740424204373,3.9945,2653.7,2653.2,0.5596]
[1740424206681,3.585,2653.5,2652.8,3.7475]
[1740424206881,3.2078,2653.5,2652.8,3.7475]
[1740424207080,3.032,2653.4,2652.8,3.7475]
[1740424208287,0.5466,2653.3,2652.8,3.7475]
[1740424208778,0.5882,2653.2,2652.8,3.7475]
[1740424210082,0.5466,2653.3,2652.8,3.7475]
[1740424210283,3.2078,2653.5,2652.8,3.7475]
[1740424211576,3.213446,2653.8,2653.1,3.2078]
[1740424211885,3.213446,2653.8,2653.2,1.1104]
[1740424212286,3.966986,2653.8,2653.7,0.75357]
[1740424212683,3.213446,2653.8,2653.7,0.75357]
[1740424212886,3.2078,2654.3,2653.5,6.806]
[1740424213091,0.75345,2654.2,2654.1,0.75344]
[1740424213585,0.75368,2653.4,2653.3,0.75366]
[1740424213787,0.75367,2653.4,2653.3,0.75367]
[1740424213979,1.889646,2653.6,2653.1,0.571846]
[1740424214180,1.889646,2653.6,2653.1,0.005646]
[1740424214181,0.75371,2653.2,2653.1,0.005646]
[1740424214789,3.78571,2653.2,2653.1,0.005646]
[1740424214988,6.99351,2653.2,2653.1,0.005646]
[1740424216591,6.2398,2653.2,2653.1,0.759386]
[1740424216793,3.2078,2653.2,2653.1,0.759386]
[1740424217590,3.96151,2653.2,2653.1,0.005646]
[1740424219496,3.585,2653.2,2652.5,0.7539]
[1740424219791,1.88445,2653.0,2652.5,0.7539]
[1740424219990,0.5419,2652.9,2652.5,0.7539]
[1740424220293,0.5419,2652.9,2652.4,3.2078]
[1740424220596,0.75387,2652.7,2652.6,0.75386]
[1740424221495,0.75388,2652.7,2652.6,0.75386]
[1740424222588,0.75391,2652.6,2652.5,0.75389]
[1740424222988,0.75391,2652.5,2652.4,3.213446]
[1740424224192,4.91665,2652.7,2652.4,3.213446]
[1740424224193,3.032,2652.7,2652.4,3.213446]
[1740424224388,3.2078,2652.5,2652.4,0.005646]
[1740424234494,3.585,2652.5,2652.4,0.005646]
[1740424234892,4.1534,2652.5,2651.8,4.3011]
[1740424239198,3.2078,2651.9,2651.2,3.2078]
[1740424239405,1.111,2651.8,2651.2,3.2078]
[1740424239699,1.111,2651.8,2651.3,0.5463]
[1740424239700,1.11665696,2651.8,2651.3,0.5463]
[1740424242297,0.00565696,2651.8,2651.5,3.2078]
[1740424242806,0.00565696,2651.8,2651.6,40.8]
[1740424243003,0.00565696,2651.8,2651.7,3.033]
[1740424243207,0.00565696,2651.8,2651.7,3.78714]
[1740424244402,0.00565696,2651.8,2651.6,40.8]
[1740424244609,0.00565696,2651.8,2651.7,0.75414]
[1740424245805,0.75976696,2651.8,2651.7,0.75414]
[1740424246202,0.00565696,2651.8,2651.5,3.2078]
[1740424246402,0.75419,2651.5,2651.4,0.5614]
[1740424246610,0.75419,2651.5,2651.4,1.31562]
[1740424247412,0.5681,2651.7,2651.4,0.5614]
[1740424247610,0.75419,2651.5,2651.4,1.31561]
[1740424247909,0.75419,2651.5,2651.4,0.5614]
[1740424248505,0.00565696,2651.8,2651.7,0.75414]
[1740424249006,0.00565696,2651.8,2651.4,6.20034]
[1740424249207,0.00565696,2651.8,2651.7,0.75414]
[1740424249411,0.75976696,2651.8,2651.7,0.75414]
[1740424251211,0.75419,2651.5,2651.4,4.3148]
[1740424251707,0.00565696,2651.8,2651.4,3.7692]
[1740424251902,0.00565696,2651.8,2651.7,0.75414]
[1740424252106,0.00565696,2651.8,2651.4,3.7692]
[1740424256210,0.00565696,2651.8,2651.7,3.2078]
[1740424257713,0.00565696,2651.8,2651.4,3.7692]
[1740424257909,0.00565696,2651.8,2651.4,6.8022]
[1740424259816,0.00565696,2651.8,2651.4,3.7692]
[1740424260006,0.00565696,2651.8,2651.4,6.8022]
[1740424261612,0.00565696,2651.8,2651.7,3.2078]
[1740424261912,2.957,2652.5,2651.7,3.2078]
[1740424262108,0.5747,2652.8,2652.0,3.2078]
[1740424262318,0.5747,2652.8,2652.5,0.75389]
[1740424262319,0.7539,2652.6,2652.5,0.75389]
[1740424262712,0.75395,2652.4,2652.3,0.75395]
[1740424262913,0.75395,2652.4,2652.3,0.75960696]
[1740424263207,0.58035696,2652.8,2652.3,0.00565696]
[1740424263407,0.75386,2652.7,2652.6,0.75385]
[1740424263815,0.00565696,2652.8,2652.7,0.75385]
[1740424264022,0.00565696,2652.8,2652.7,1.31015]
[1740424264907,0.7537,2653.3,2652.7,1.89135]
[1740424265113,0.7537,2653.3,2653.1,0.75371]
[1740424265311,5.09185,2653.6,2653.1,0.75373]
[1740424265709,0.7537,2653.3,2653.2,0.75371]
[1740424265908,3.2078,2653.6,2652.8,1.88457]
[1740424266115,0.00565696,2653.5,2652.8,1.88457]
[1740424266311,0.75369,2653.3,2653.2,0.7537]
[1740424267518,0.00565696,2653.5,2652.9,1.8845]
[1740424267719,0.75372,2653.2,2653.1,0.75372]
[1740424268013,6.2398,2653.3,2652.7,1.1375]
[1740424268220,0.75382,2652.8,2652.7,1.33505]
[1740424268516,1.88436,2653.1,2652.3,3.03765696]
[1740424268717,0.5425,2653.1,2652.4,1.88485]
[1740424268917,1.29625,2653.1,2653.0,0.75377]
[1740424269110,0.5642,2653.2,2652.5,3.2078]
[1740424269313,0.5642,2653.2,2653.1,0.75374]
[1740424270013,1.31791,2653.2,2653.1,0.75374]
[1740424271319,0.75375,2653.1,2653.0,0.75374]
[1740424271922,0.5642,2653.2,2653.1,0.75374]
[1740424272516,0.75375,2653.1,2653.0,0.75374]
[1740424272717,0.5642,2653.2,2652.9,0.5347]
[1740424272918,1.31793,2653.2,2653.1,0.75374]
[1740424273910,0.5642,2653.2,2652.8,3.2078]
[1740424274115,1.88443,2653.0,2652.5,3.2078]
[1740424274314,0.5472,2652.9,2652.5,3.2078]
[1740424274523,0.5472,2652.9,2652.4,0.75391]
[1740424274524,0.75393,2652.5,2652.4,0.75391]
[1740424274710,0.5819,2652.8,2652.1,2.46803]
[1740424274916,0.5365,2652.7,2652.4,0.75391]
[1740424275109,0.75394,2652.4,2652.2,0.75397]
[1740424275313,0.75394,2652.4,2652.3,0.75962696]
[1740424275511,0.75394,2652.4,2652.3,0.00565696]
[1740424276016,0.5819,2652.8,2652.4,1.88485]
[1740424276215,0.5819,2652.8,2652.7,0.75385]
[1740424276418,0.75371,2653.3,2653.2,0.75371]
[1740424276621,0.00565696,2653.5,2653.4,0.75365]
[1740424277119,6.96e-06,2653.5,2653.4,9.78465]
[1740424277318,0.5424,2654.7,2654.6,0.75331]
[1740424277617,0.5424,2654.7,2653.9,3.2078]
[1740424277816,0.5424,2654.7,2654.0,0.59]
[1740424278016,1.88329,2654.6,2654.0,0.59]
[1740424278212,0.5424,2654.7,2653.6,3.7543]
[1740424278213,1.88336,2654.5,2653.6,3.7543]
[1740424278521,0.75346,2654.1,2653.9,0.75349]
[1740424278720,0.7535,2654.0,2653.8,0.75917696]
[1740424278925,0.75344,2654.2,2654.1,0.75344]
[1740424279116,0.75906696,2654.3,2653.8,0.00565696]
[1740424279314,0.00565696,2654.3,2653.8,0.00565696]
[1740424279518,0.75351,2653.9,2653.8,0.00565696]
[1740424280021,0.00565696,2654.3,2653.8,0.75918696]
[1740424280222,0.7535,2654.0,2653.9,0.75351]
[1740424280424,0.75351,2653.9,2653.8,0.00565696]
[1740424281522,0.7535,2654.0,2653.8,0.75917696]
[1740424281722,0.00565696,2654.3,2653.8,0.00565696]
[1740424281919,0.75351,2653.9,2653.8,0.00565696]
[1740424283220,1.28591,2653.9,2653.8,0.00565696]
[1740424283823,0.5324,2653.9,2653.8,0.75919696]
[1740424284026,0.5353,2654.2,2654.1,0.75346]
[1740424284228,0.5353,2654.2,2654.0,0.75346]
[1740424284528,0.75351,2653.9,2653.8,0.00565696]
[1740424285627,0.5353,2654.2,2653.8,0.00565696]
[1740424286527,1.28874,2654.2,2653.8,0.00565696]
[1740424287227,0.5353,2654.2,2653.8,0.00565696]
[1740424287428,0.75351,2653.9,2653.8,0.00565696]
[1740424287616,0.5353,2654.2,2653.8,0.00565696]
[1740424287617,0.7535,2654.0,2653.8,0.00565696]
[1740424287817,0.00565696,2654.3,2653.9,1.88379]
[1740424288021,0.00565696,2654.3,2654.2,0.75343]
[1740424288421,0.75905696,2654.3,2654.2,0.75343]
[1740424288618,0.00565696,2654.3,2654.2,0.75343]
[1740424288822,0.75905696,2654.3,2654.2,0.75343]
[1740424290329,0.75907696,2654.3,2654.2,0.75343]
[1740424290727,0.75345,2654.2,2654.1,0.75344]
[1740424291231,0.00565696,2654.3,2653.9,3.7429]
[1740424291633,3.21345696,2654.3,2653.9,3.7429]
[1740424291835,0.00565696,2654.3,2653.9,3.7429]
[1740424292325,3.03,2654.2,2653.8,0.00565696]
[1740424292526,3.2078,2654.0,2653.8,0.00565696]
[1740424295231,0.75351,2653.9,2653.8,0.00565696]
[1740424297036,3.2078,2654.0,2653.9,0.75351]
[1740424297037,3.96131,2654.0,2653.9,0.75351]
[1740424297235,3.2078,2654.0,2653.8,0.00565696]
[1740424300338,3.585,2654.0,2653.8,0.00565696]
[1740424303339,3.03,2653.9,2653.8,0.00565696]
[1740424304136,6.615,2654.0,2653.8,0.00565696]
[1740424304834,3.585,2654.0,2653.8,0.00565696]
[1740424305141,0.75906696,2654.3,2653.9,1.88379]
[1740424305433,0.00565696,2654.3,2654.2,0.75343]
[1740424305642,3.2078,2654.9,2654.3,1.88346]
[1740424305841,0.75327,2654.8,2654.7,0.75327]
[1740424306035,0.75331,2654.6,2654.5,3.2078]
[1740424306236,0.75331,2654.6,2654.0,1.6912]
[1740424306237,1.88308,2654.9,2654.2,3.96121]
[1740424306431,0.7534,2654.3,2654.2,3.96123]
[1740424306638,0.75343,2654.2,2654.1,0.5451]
[1740424307242,0.75343,2654.2,2654.1,1.29856]
[1740424307438,2.20064906,2654.5,2654.4,0.75337]
[1740424307636,0.75338,2654.4,2654.3,0.75338]
[1740424307837,1.55901344,2654.5,2654.4,0.75337]
[1740424308039,0.00565696,2654.5,2654.4,0.75337]
[1740424308246,0.75899696,2654.5,2654.4,0.75337]
[1740424308440,0.75339,2654.4,2654.3,0.75339]
[1740424308841,0.75338,2654.4,2654.1,4.3321]
[1740424309042,0.00565696,2654.5,2654.1,4.3321]
[1740424309242,0.75343,2654.2,2654.1,0.5451]
[1740424310654,0.75351,2653.9,2653.8,3.96698696]
[1740424311647,0.75351,2653.9,2653.8,3.21345696]
[1740424312239,0.75351,2653.9,2653.8,0.00565696]
[1740424315347,6.2378,2654.1,2653.8,0.00565696]
[1740424315548,1.1314,2654.2,2653.8,0.00565696]
[1740424315849,3.03,2654.4,2653.8,0.00565696]
[1740424318048,3.4072,2654.4,2653.8,0.00565696]
[1740424318652,0.5745,2654.3,2653.8,0.00565696]
[1740424319556,3.585,2654.2,2653.8,0.00565696]
[1740424319946,0.5708,2654.1,2653.8,0.00565696]
[1740424320346,3.7786,2654.1,2653.8,0.00565696]
[1740424320542,0.3772,2654.2,2653.8,0.00565696]
[1740424320748,0.00565696,2654.5,2654.0,3.2078]
[1740424321053,0.00565696,2654.5,2654.1,4.8675]
[1740424321451,0.75339,2654.4,2654.3,0.75339]
[1740424321750,0.75343,2654.2,2654.1,4.8675]
[1740424322054,0.75343,2654.2,2654.1,5.06466]
[1740424322256,0.75343,2654.2,2654.1,4.3112]
[1740424322551,0.75351,2653.9,2653.8,0.00565696]
[1740424322751,0.75351,2653.9,2653.8,0.75918696]
[1740424323049,0.75351,2653.9,2653.8,0.00565696]
[1740424323649,0.75351,2653.9,2653.8,0.75919696]
[1740424323853,3.6165,2654.3,2653.8,0.00565696]
[1740424324050,0.75351,2653.9,2653.8,0.75917696]
[1740424325258,0.75351,2653.9,2653.8,0.00565696]
[1740424325662,3.78851,2653.9,2653.8,0.00565696]
[1740424325955,1.88436,2653.2,2652.6,3.2078]
[1740424326154,0.75382,2652.8,2652.7,0.5475]
[1740424326855,3.2078,2653.1,2652.7,0.5475]
[1740424327353,0.75376,2653.1,2653.0,0.75376]
[1740424327945,0.75378,2653.0,2652.9,0.75378]
[1740424328155,0.00565696,2653.2,2652.7,0.5475]
[1740424328349,0.75382,2652.8,2652.7,0.5475]
[1740424328555,1.88436,2653.1,2652.6,5.09112696]
[1740424328556,0.75385,2652.7,2652.6,0.00565696]
[1740424329752,4.51455,2652.7,2652.6,0.00565696]
[1740424329955,1.30675,2652.7,2652.6,0.00565696]
[1740424332453,4.51455,2652.7,2652.6,0.00565696]
[1740424334562,4.51455,2652.7,2652.6,6.96e-06]
[1740424335366,10.51455,2652.7,2652.6,6.96e-06]
[1740424335664,4.51455,2652.7,2652.6,6.96e-06]
[1740424336059,4.57561371,2652.7,2652.6,6.96e-06]
[1740424336362,0.75408,2651.9,2651.8,0.5583]
[1740424336562,0.75414,2651.7,2651.6,0.5667]
[1740424337260,3.2078,2652.2,2651.6,0.5667]
[1740424337565,3.2078,2652.2,2651.8,0.75409]
[1740424337566,0.75411,2651.9,2651.8,0.75409]
[1740424338259,0.5578,2652.1,2651.6,0.57235696]
[1740424339365,3.2078,2651.9,2651.6,0.00565696]
[1740424339559,0.3774,2651.8,2651.6,6.96e-06]
[1740424339757,0.5723,2651.7,2651.6,6.96e-06]
[1740424340259,1.32644,2651.7,2651.6,6.96e-06]
[1740424340464,0.3774,2651.9,2651.8,0.75411]
[1740424340765,0.75407,2652.0,2651.9,0.75407]
[1740424340960,3.5148,2652.1,2651.8,1.88528]
[1740424341161,0.75408,2652.0,2651.9,0.75407]
[1740424341561,0.75411,2651.8,2651.7,4.49821]
[1740424341867,0.5578,2652.1,2651.7,44.5441]
[1740424342066,3.6144,2652.3,2651.7,46.42943]
[1740424342363,3.756,2652.5,2652.4,0.75394]
[1740424342569,0.75399,2652.3,2652.2,0.75399]
[1740424342770,0.75395,2652.4,2652.3,0.75395]
[1740424343069,0.5482,2652.5,2652.4,0.75392]
[1740424343070,0.75393,2652.5,2652.4,0.75392]
[1740424343369,3.046,2652.7,2652.1,0.5645]
[1740424343564,0.75397,2652.3,2652.2,0.5736]
[1740424343759,3.046,2652.7,2652.2,0.5736]
[1740424343967,0.5482,2652.8,2652.3,3.2078]
[1740424344165,3.2078,2653.0,2652.8,0.75382]
[1740424344166,0.75381,2652.9,2652.8,0.75382]
[1740424344472,3.2078,2653.0,2652.6,3.2078]
[1740424344662,3.2078,2653.0,2652.7,1.30344]
[1740424344663,0.75383,2652.8,2652.7,1.30344]
[1740424344864,0.00565696,2653.2,2652.7,0.5496]
[1740424345160,0.00565696,2653.2,2652.7,1.1141]
[1740424345368,0.75379,2653.0,2652.9,0.75379]
[1740424345572,0.00565696,2653.2,2652.7,1.1141]
[1740424345573,0.00565696,2653.2,2653.1,0.75374]
[1740424346470,0.00565696,2653.2,2652.9,3.2078]
[1740424346471,0.00565696,2653.2,2652.9,3.96158]
[1740424346670,0.75377,2653.0,2652.9,3.9616]
[1740424347065,0.00565696,2653.2,2652.9,3.2078]
[1740424347263,0.75377,2653.0,2652.9,3.96158]
[1740424348177,3.21345696,2653.2,2652.7,1.1141]
[1740424348361,0.75382,2652.8,2652.7,0.5496]
[1740424350976,0.75382,2652.8,2652.7,1.30345]
[1740424351173,0.75382,2652.8,2652.7,0.5496]
[1740424351571,0.75388,2652.6,2652.5,0.75389]
[1740424351777,0.75388,2652.6,2652.5,0.75391]
[1740424352278,1.8845,2652.9,2652.4,0.5543]
[1740424352478,0.75388,2652.7,2652.6,0.75388]
[1740424352779,3.7713,2653.0,2652.4,0.5543]
[1740424352780,0.75389,2652.6,2652.5,0.75389]
[1740424352975,3.7713,2653.0,2652.4,0.5543]
[1740424353276,0.75386,2652.7,2652.6,0.75386]
[1740424353477,0.7539,2652.6,2652.5,0.7539]
[1740424354272,3.7713,2653.0,2652.6,0.75388]
[1740424354472,3.7713,2653.0,2652.4,0.5543]
[1740424354674,0.00565696,2653.2,2652.9,3.2078]
[1740424354878,0.00565696,2653.2,2653.1,0.75374]
[1740424355574,0.00565696,2653.2,2653.0,0.5381]
[1740424355771,0.75374,2653.1,2653.0,0.5381]
[1740424355966,5.63324696,2653.2,2652.6,3.2078]
[1740424356167,0.75382,2652.9,2652.8,0.75382]
[1740424356875,0.54115696,2653.2,2652.9,0.75377]
[1740424357073,0.75377,2653.0,2652.9,0.75377]
[1740424357475,0.75381,2652.9,2652.8,0.7538]
[1740424358071,5.63325696,2653.2,2652.7,0.5618]
[1740424358278,0.75382,2652.8,2652.7,1.31564]
[1740424359078,5.63325696,2653.2,2652.7,1.31564]
[1740424359079,5.63325696,2653.2,2652.7,0.5618]
[1740424359283,3.74895696,2653.2,2652.7,0.5618]
[1740424360381,0.00565696,2653.2,2652.9,3.2078]
[1740424360987,0.00565696,2653.2,2653.0,0.5739]
[1740424361679,0.5515,2654.0,2653.0,10.1074]
[1740424361884,3.5719,2654.3,2653.4,3.2078]
[1740424362078,4.1234,2654.3,2653.5,0.5496]
[1740424362278,0.75349,2654.0,2653.9,0.75348]
[1740424362484,1.0914,2654.3,2653.8,1.88386]
[1740424362783,8.07500811,2654.6,2654.5,0.75334]
[1740424363377,8.07500811,2654.6,2654.2,0.5413]
[1740424363779,0.7534,2654.3,2654.2,0.5413]
[1740424363979,0.7534,2654.3,2654.2,1.29473]
[1740424364985,0.7534,2654.3,2654.2,0.5413]
[1740424368984,0.75343,2654.2,2654.1,0.75346]
[1740424371291,1.88338,2654.5,2654.0,3.785]
[1740424371487,0.75344,2654.2,2654.1,0.75344]
[1740424372883,0.75342,2654.3,2654.2,0.75342]
[1740424373182,0.75345,2654.2,2654.1,0.75345]
[1740424375283,0.5824,2654.5,2654.0,3.785]
[1740424375488,0.75345,2654.2,2654.1,0.75345]
[1740424376087,0.5824,2654.5,2654.0,3.785]
[1740424380491,0.00565696,2654.8,2654.3,3.2078]
[1740424380795,0.00565696,2654.8,2654.4,0.5834]
[1740424381299,0.00565696,2654.8,2654.3,3.03]
[1740424382798,0.00565696,2654.8,2654.3,6.2378]
[1740424382997,0.00565696,2654.8,2654.6,3.2078]
[1740424383192,0.00565696,2654.8,2654.3,3.03]
[1740424387000,0.00565696,2654.8,2654.5,3.2078]
[1740424387293,0.00565696,2654.8,2654.6,0.5394]
[1740424387499,0.00565696,2654.8,2654.6,1.6903]
[1740424389505,0.00565696,2654.8,2654.7,3.029]
[1740424390001,0.5806,2655.6,2654.7,9.029]
[1740424390295,0.5806,2655.6,2655.0,3.2078]
[1740424390502,0.5806,2655.6,2655.1,3.029]
[1740424390702,3.2078,2655.5,2654.7,3.2078]
[1740424391106,0.00565696,2655.4,2655.0,3.2078]
[1740424391401,0.00565696,2655.4,2655.0,6.2368]
[1740424392198,0.00565696,2655.4,2655.0,3.2078]
[1740424392901,0.00565696,2655.4,2654.8,3.029]
[1740424394995,0.00565696,2655.4,2654.8,3.598]
[1740424395201,0.00565696,2655.4,2655.0,3.2078]
[1740424403111,0.00565696,2655.4,2654.8,3.598]
[1740424403112,0.00565696,2655.4,2654.9,3.2078]
[1740424403313,0.00565696,2655.4,2654.7,0.5849]
[1740424403509,0.64862596,2655.4,2654.7,0.5849]
[1740424403810,3.2078,2655.2,2654.3,3.2078]
[1740424404013,3.028,2655.1,2654.3,3.2078]
[1740424404319,0.75332,2654.6,2654.5,0.75332]
[1740424404511,0.75332,2654.6,2654.3,3.2078]
[1740424404712,0.75333,2654.6,2654.5,0.75333]
[1740424405014,0.75336,2654.5,2654.4,0.75336]
[1740424405206,0.75335,2654.5,2654.4,0.75337]
[1740424405807,0.75331,2654.7,2654.6,0.75331]
[1740424406205,0.75334,2654.6,2654.5,0.75333]
[1740424406412,1.88308,2654.9,2654.3,3.2078]
[1740424406906,3.2078,2654.9,2654.3,3.2078]
[1740424407301,0.75337,2654.4,2654.3,3.2078]
[1740424407506,0.75343,2654.2,2654.1,1.1417]
[1740424407709,0.75343,2654.3,2654.2,0.75342]
[1740424407907,3.028,2654.7,2654.1,1.1417]
[1740424408107,3.028,2654.7,2654.4,0.75335]
[1740424408108,0.75335,2654.5,2654.4,0.75335]
[1740424408412,0.75341,2654.3,2654.2,0.75341]
[1740424408611,5.46724,2654.7,2654.1,1.1417]
[1740424408803,0.75341,2654.3,2654.2,0.7534]
[1740424409907,0.75343,2654.2,2654.1,1.1417]
[1740424410107,0.75343,2654.3,2654.2,0.75341]
[1740424410416,0.75343,2654.2,2654.1,1.1417]
[1740424411214,0.5645,2654.6,2654.1,1.1417]